bitfinex/quotes_ETHUSD_20260213
["timestamp","ask_amount","ask_price","bid_price","bid_amount"]
[1770984620071,0.002,1958.9,1958.4,1.75792344]
[1770984620955,0.002,1958.9,1958.5,0.48137116]
[1770984621557,0.002,1958.9,1958.4,1.27655228]
[1770984622268,1.77616841,1958.9,1958.3,2.53137116]
[1770984622568,1.77616841,1958.9,1958.3,2.05]
[1770984622569,0.49794196,1958.8,1958.3,2.05]
[1770984624158,0.49794196,1958.7,1958.3,2.05]
[1770984625053,0.49794196,1958.7,1958.2,1.27667783]
[1770984625980,0.49794196,1958.7,1958.5,0.001]
[1770984627279,0.002,1958.8,1958.5,0.001]
[1770984633993,0.46776067,1958.8,1958.5,0.001]
[1770984634381,1.27635676,1958.7,1958.5,0.001]
[1770984634583,5.57296279,1958.8,1958.5,0.001]
[1770984634785,1.74405227,1958.8,1958.5,0.001]
[1770984635185,0.46576067,1958.7,1958.5,0.001]
[1770984636196,0.46576067,1958.7,1958.4,0.001]
[1770984636378,1.27642193,1958.6,1958.4,0.001]
[1770984636579,1.73055347,1958.6,1958.4,0.001]
[1770984638693,0.45413154,1958.5,1958.4,0.001]
[1770984639289,0.45413154,1958.5,1958.1,0.001]
[1770984640604,1.73054373,1958.7,1958.1,0.001]
[1770984640899,1.73247048,1958.8,1958.1,0.48687838]
[1770984641276,0.45613154,1958.8,1958.2,0.48587838]
[1770984641473,1.73242743,1958.8,1958.2,0.48587838]
[1770984642197,0.002,1958.8,1958.2,0.48587838]
[1770984642800,0.002,1958.8,1958.3,1.27661747]
[1770984642981,0.002,1958.8,1958.2,1.76256104]
[1770984642982,0.45613154,1958.8,1958.2,1.76256104]
[1770984643876,0.45613154,1958.8,1958.2,0.48587838]
[1770984644983,1.73247481,1958.8,1958.2,1.76255089]
[1770984645395,0.45613154,1958.8,1958.2,1.76255089]
[1770984645905,1.73243825,1958.8,1958.2,1.76255089]
[1770984647213,0.45613154,1958.8,1958.2,1.76255089]
[1770984648704,0.45613154,1958.8,1958.2,1.27667251]
[1770984649112,1.73242824,1958.8,1958.2,1.27667251]
[1770984649290,0.45613154,1958.8,1958.2,1.27667251]
[1770984649489,0.45613154,1958.8,1958.2,1.76255089]
[1770984650311,0.45613154,1958.8,1958.3,0.001]
[1770984650481,0.002,1958.7,1958.3,0.001]
[1770984650997,0.002,1958.7,1958.3,0.48687838]
[1770984651197,0.002,1958.7,1958.4,1.27655228]
[1770984651399,0.002,1958.7,1958.4,1.76243066]
[1770984652712,0.002,1958.7,1958.5,0.48587838]
[1770984654012,0.002,1958.7,1958.3,1.27756808]
[1770984654013,0.002,1958.7,1958.4,0.48587838]
[1770984656223,0.002,1958.7,1958.5,0.48587838]
[1770984658048,0.002,1958.7,1958.6,1.76230031]
[1770984658242,0.002,1958.9,1958.6,1.76230031]
[1770984658905,0.002,1958.9,1958.7,0.48587838]
[1770984659499,0.002,1958.9,1958.6,3.33042193]
[1770984659824,0.002,1958.9,1958.6,3.81630031]
[1770984660122,0.002,1958.9,1958.7,0.48587838]
[1770984660622,0.47478094,1959.1,1958.6,2.054]
[1770984660811,0.47278094,1958.9,1958.3,1.74488012]
[1770984661015,0.002,1959.1,1958.4,2.056]
[1770984661016,1.57515674,1958.8,1958.4,2.056]
[1770984661223,0.47278094,1958.8,1958.4,2.056]
[1770984661425,1.10244216,1958.7,1958.4,2.056]
[1770984661730,0.47278094,1958.8,1958.4,2.056]
[1770984662097,1.57520193,1958.7,1958.3,0.001]
[1770984662426,1.27634301,1958.8,1958.3,0.001]
[1770984662598,1.10252429,1958.7,1958.3,0.001]
[1770984662799,1.74912395,1958.8,1958.3,0.001]
[1770984663009,1.10250353,1958.7,1958.3,0.001]
[1770984663214,0.47278094,1958.7,1958.3,0.001]
[1770984663644,0.47278094,1958.7,1958.5,0.001]
[1770984665335,1.7491446,1958.7,1958.5,0.001]
[1770984666242,0.47278094,1958.7,1958.5,0.001]
[1770984668756,0.002,1958.8,1958.5,0.001]
[1770984668918,1.27812975,1959.1,1958.6,0.46727768]
[1770984669114,1.10240862,1959.0,1958.5,2.053]
[1770984669319,1.10240862,1958.9,1958.5,2.053]
[1770984669552,1.75091069,1959.1,1958.5,2.053]
[1770984669730,1.10249504,1959.0,1958.5,2.053]
[1770984669931,1.10249504,1958.9,1958.5,2.053]
[1770984670150,1.75091069,1959.1,1958.5,2.52027768]
[1770984670364,1.102579,1959.0,1958.5,2.52027768]
[1770984670573,1.102579,1958.9,1958.5,2.52027768]
[1770984670871,1.75091069,1959.1,1958.5,2.52027768]
[1770984671033,1.10257905,1959.0,1958.5,3.79671082]
[1770984671233,1.10257905,1958.9,1958.5,3.79671082]
[1770984671462,1.75091069,1959.1,1958.5,3.79671082]
[1770984671642,1.10269004,1959.0,1958.5,3.79671082]
[1770984671841,1.10269004,1958.9,1958.5,3.79671082]
[1770984672034,0.47278094,1959.0,1958.5,2.053]
[1770984672248,1.10269996,1958.9,1958.5,2.053]
[1770984672436,0.47278094,1959.0,1958.5,2.053]
[1770984672637,1.10263657,1958.9,1958.5,2.053]
[1770984672847,0.47278094,1959.0,1958.5,2.053]
[1770984673138,1.10263672,1958.9,1958.5,2.053]
[1770984673358,1.74898021,1959.0,1958.5,3.32948642]
[1770984673565,1.10261158,1958.9,1958.5,3.32948642]
[1770984673765,1.74898021,1959.0,1958.5,3.32948642]
[1770984673965,1.10261152,1958.9,1958.5,3.32948642]
[1770984674166,0.47278094,1959.0,1958.5,3.32948642]
[1770984674369,1.10262376,1958.9,1958.5,3.32948642]
[1770984674669,0.47278094,1959.0,1958.5,3.32948642]
[1770984674867,1.10262392,1958.9,1958.5,3.32948642]
[1770984675066,1.75090797,1959.1,1958.5,3.7967641]
[1770984675366,1.57543501,1959.0,1958.5,3.32948642]
[1770984675540,1.10265407,1958.9,1958.5,3.32948642]
[1770984675871,0.47278094,1959.0,1958.5,3.32948642]
[1770984676053,1.10262792,1958.9,1958.5,3.32948642]
[1770984676241,0.47278094,1959.0,1958.5,3.32948642]
[1770984676585,1.10465255,1958.9,1958.6,0.001]
[1770984676872,0.002,1958.9,1958.6,0.001]
[1770984681377,1.5758855,1958.8,1958.6,0.001]
[1770984681584,1.10310456,1958.7,1958.6,0.001]
[1770984682044,1.10310456,1958.8,1958.6,0.001]
[1770984682246,1.10310456,1958.7,1958.6,0.001]
[1770984682468,1.10310456,1958.8,1958.6,0.001]
[1770984682662,1.10310456,1958.7,1958.6,0.001]
[1770984683076,1.75102567,1958.9,1958.6,0.001]
[1770984683077,1.10310456,1958.8,1958.6,0.001]
[1770984683251,1.10310456,1958.7,1958.6,0.001]
[1770984683651,1.10310456,1958.8,1958.6,0.001]
[1770984683877,1.10310456,1958.7,1958.6,0.001]
[1770984684378,1.10310456,1958.8,1958.6,0.001]
[1770984684582,1.10310456,1958.7,1958.6,0.001]
[1770984684971,1.10310456,1958.8,1958.6,0.001]
[1770984685176,1.10310456,1958.7,1958.6,0.001]
[1770984686751,1.10310456,1958.8,1958.6,0.001]
[1770984689372,1.10310456,1958.8,1958.7,0.001]
[1770984689574,1.10510456,1958.8,1958.7,0.001]
[1770984690482,1.10532348,1958.8,1958.7,0.001]
[1770984696493,1.10532348,1958.8,1958.4,1.2767627]
[1770984696676,1.10332348,1958.7,1958.4,1.2767627]
[1770984697863,1.10332348,1958.7,1958.4,0.00021377]
[1770984701405,0.45200953,1958.5,1958.2,0.001]
[1770984701577,1.10332348,1958.4,1958.0,0.00253886]
[1770984701778,1.72851928,1958.5,1958.0,1.27933176]
[1770984702005,1.72851928,1958.5,1958.0,0.00253886]
[1770984703405,1.72851928,1958.5,1958.4,0.001]
[1770984703617,0.45200953,1958.2,1957.6,1.27702854]
[1770984703789,1.72870164,1958.2,1957.6,1.73716207]
[1770984704187,0.45200953,1958.1,1957.4,2.061]
[1770984704388,0.45200953,1958.1,1957.5,0.46013353]
[1770984706486,0.45200953,1958.0,1957.4,2.061]
[1770984708882,1.72888781,1957.9,1957.4,2.061]
[1770984709278,0.45200953,1957.9,1957.4,3.33818578]
[1770984709478,0.45200953,1957.9,1957.4,3.33819727]
[1770984710415,0.45200953,1957.9,1957.4,2.061]
[1770984711623,1.72890338,1957.9,1957.4,3.33820366]
[1770984711915,1.72890338,1957.9,1957.4,2.061]
[1770984713020,1.27689385,1957.9,1957.4,3.79832654]
[1770984713224,1.72890338,1957.9,1957.4,2.061]
[1770984713793,0.45200953,1957.8,1957.4,2.061]
[1770984714498,1.72890338,1957.9,1957.4,2.061]
[1770984715304,0.45200953,1957.8,1957.2,0.001]
[1770984715488,0.45200953,1957.7,1957.2,0.001]
[1770984715700,1.72908349,1957.6,1957.5,0.001]
[1770984715901,1.72908349,1957.6,1957.2,0.001]
[1770984715902,0.45200953,1957.5,1957.2,0.001]
[1770984716101,0.45200953,1957.5,1957.1,0.001]
[1770984716102,0.45200953,1957.4,1957.1,0.001]
[1770984717728,1.2772697,1957.3,1957.1,0.001]
[1770984717909,1.72926273,1957.4,1957.1,0.001]
[1770984719552,0.45200953,1957.4,1957.1,0.001]
[1770984719717,10.14403451,1957.7,1957.1,1.73849663]
[1770984719911,10.14403451,1957.7,1957.1,0.46113353]
[1770984720112,10.14403451,1957.7,1957.1,0.001]
[1770984720113,0.45200953,1957.6,1957.1,0.001]
[1770984720709,9.69202498,1957.7,1957.1,0.001]
[1770984720710,0.49454366,1957.4,1957.1,0.001]
[1770984721012,6.77697202,1957.3,1957.0,0.00153886]
[1770984721739,1.27733496,1957.2,1957.0,0.00153886]
[1770984721929,8.54883747,1957.3,1957.0,0.00153886]
[1770984724213,0.49654366,1957.8,1957.0,0.46316682]
[1770984724414,1.644,1957.7,1957.0,0.46316682]
[1770984724713,2.13854366,1957.7,1957.0,0.46316682]
[1770984724914,8.91551568,1957.7,1957.0,0.46316682]
[1770984725841,0.49454366,1957.6,1957.0,0.46316682]
[1770984727559,9.69801985,1957.7,1957.1,1.73902819]
[1770984727736,1.644,1957.7,1957.1,1.73902819]
[1770984727938,2.92101978,1957.7,1957.1,1.73902819]
[1770984728152,1.644,1957.7,1957.1,1.74002819]
[1770984728475,2.92102027,1957.7,1957.1,1.74002819]
[1770984728771,2.92102027,1957.7,1957.2,0.46162796]
[1770984728772,1.644,1957.7,1957.2,0.46162796]
[1770984729280,1.27898594,1957.8,1957.2,0.46162796]
[1770984729576,0.002,1957.8,1957.5,0.46162796]
[1770984732755,0.002,1957.8,1957.7,0.46162796]
[1770984735002,0.002,1957.8,1957.7,1.73863669]
[1770984735584,1.77110088,1958.4,1957.8,0.46162796]
[1770984735792,1.09983203,1958.3,1957.8,0.46162796]
[1770984735958,1.09983203,1958.2,1957.8,0.46162796]
[1770984736289,1.77110088,1958.4,1957.8,0.46162796]
[1770984736483,1.09983751,1958.3,1957.8,0.46162796]
[1770984736688,1.09983751,1958.2,1957.8,0.46162796]
[1770984736886,1.27655722,1958.4,1957.8,0.46162796]
[1770984737187,1.09983751,1958.3,1957.8,1.7385574]
[1770984737371,1.09983751,1958.2,1957.8,1.7385574]
[1770984737692,1.77110088,1958.4,1957.8,1.7385574]
[1770984737895,1.0996852,1958.3,1957.8,1.7385574]
[1770984738082,1.0996852,1958.2,1957.8,1.7385574]
[1770984738293,1.77110088,1958.4,1957.8,1.7385574]
[1770984738492,1.09932565,1958.3,1957.8,1.7385574]
[1770984738787,1.09932565,1958.2,1957.8,1.7385574]
[1770984738981,1.77121818,1958.3,1957.6,1.73864514]
[1770984739298,1.0991387,1958.2,1957.6,1.73864514]
[1770984739499,1.77121818,1958.3,1957.6,1.73864514]
[1770984739699,1.10102732,1958.2,1957.6,1.73864514]
[1770984739997,0.49654366,1958.2,1957.6,0.46162796]
[1770984740199,0.49654366,1958.2,1957.6,1.73870038]
[1770984740200,1.59353679,1958.1,1957.6,1.73870038]
[1770984740403,0.49454366,1958.1,1957.6,1.27707242]
[1770984742306,0.49454366,1958.0,1957.2,6.03011735]
[1770984742621,1.27678792,1958.1,1957.4,0.46162796]
[1770984742804,0.002,1958.2,1957.6,6.77697202]
[1770984742975,0.002,1958.2,1957.7,0.46162796]
[1770984743514,1.77323704,1958.2,1957.5,0.46162796]
[1770984744305,0.002,1958.2,1957.6,1.73870192]
[1770984744673,0.002,1958.2,1957.7,0.46162796]
[1770984746383,0.002,1958.2,1957.8,1.2769435]
[1770984746588,0.002,1958.2,1957.8,1.73857146]
[1770984746907,0.002,1958.2,1957.8,1.2769435]
[1770984751922,0.002,1958.2,1957.8,1.76662581]
[1770984752125,0.002,1958.1,1957.8,1.76662581]
[1770984752322,0.002,1958.1,1958.0,1.27681307]
[1770984756313,0.002,1958.1,1958.0,1.76070366]
[1770984757226,0.002,1958.3,1958.1,0.48389059]
[1770984757432,1.641,1958.6,1958.1,0.48389059]
[1770984757723,1.10216097,1958.5,1958.2,1.27668266]
[1770984757926,0.002,1958.6,1958.3,0.48389059]
[1770984758930,1.10212495,1958.5,1958.3,0.48389059]
[1770984759132,0.002,1958.7,1958.3,0.48389059]
[1770984760099,0.002,1958.7,1958.5,0.48389059]
[1770984761432,0.002,1958.7,1958.3,5.10620915]
[1770984761734,0.002,1958.7,1958.3,7.18020915]
[1770984762043,0.002,1958.7,1958.4,0.48389059]
[1770984762218,0.002,1958.7,1958.5,1.2764871]
[1770984763047,0.002,1958.7,1958.3,3.35057646]
[1770984763245,0.002,1958.7,1958.3,3.83446705]
[1770984764744,0.002,1958.6,1958.3,3.83446705]
[1770984766806,0.002,1958.6,1958.3,3.35057646]
[1770984767008,0.002,1958.6,1958.4,0.48389059]
[1770984769340,0.002,1958.6,1958.5,1.76037769]
[1770984771035,0.002,1958.8,1958.5,1.76037769]
[1770984771222,0.002,1958.8,1958.6,2.087]
[1770984771827,0.002,1959.2,1958.7,8.53721937]
[1770984772032,0.002,1959.2,1958.8,0.48389059]
[1770984772229,0.002,1959.2,1958.7,1.27635676]
[1770984772551,0.4954704,1959.2,1958.7,2.089]
[1770984773925,0.4954704,1959.2,1958.7,3.36530648]
[1770984774244,0.41525556,1959.2,1958.7,3.36530648]
[1770984774445,5.10551127,1959.5,1958.7,3.36530648]
[1770984774446,0.002,1959.5,1959.1,7.25189961]
[1770984774658,0.49500926,1960.0,1959.4,0.48389059]
[1770984775145,0.00153886,1960.0,1959.5,9.34089961]
[1770984775348,0.00153886,1960.0,1959.6,0.48389059]
[1770984775513,0.4934704,1960.6,1959.9,7.25189961]
[1770984775718,0.4934704,1960.6,1960.0,2.089]
[1770984775918,1.76849673,1960.8,1960.1,1.27544513]
[1770984776133,0.4934704,1960.9,1960.2,0.48389059]
[1770984776339,0.4934704,1960.8,1960.0,1.27550875]
[1770984776621,0.4934704,1960.3,1959.7,1.27570546]
[1770984776943,0.4934704,1960.5,1959.7,1.75959605]
[1770984777330,0.4954704,1960.5,1959.7,1.75959605]
[1770984778147,1.77067396,1960.5,1959.7,1.75959605]
[1770984778344,0.002,1960.5,1959.8,0.48389059]
[1770984780419,0.002,1960.5,1959.9,1.27557528]
[1770984780619,0.002,1960.5,1959.9,1.75946587]
[1770984780850,0.50036672,1960.5,1959.8,2.086]
[1770984781246,0.50036672,1960.5,1959.7,2.087]
[1770984781821,0.50036672,1960.5,1959.8,0.45628371]
[1770984782025,0.002,1960.5,1959.8,0.45628371]
[1770984782750,0.002,1960.5,1960.0,0.45628371]
[1770984784957,0.002,1960.5,1960.2,0.45628371]
[1770984785120,0.002,1960.5,1960.3,2.086]
[1770984785324,0.002,1960.5,1960.4,0.45628371]
[1770984785852,0.00153886,1961.0,1960.4,0.45628371]
[1770984786353,0.49990558,1961.0,1960.5,2.085]
[1770984787255,1.27492477,1960.9,1960.5,2.085]
[1770984787445,1.77329149,1960.9,1959.8,0.45628371]
[1770984787757,0.49836672,1960.8,1960.0,0.45628371]
[1770984787957,0.49836672,1960.8,1960.0,0.50730411]
[1770984789146,1.27492477,1960.9,1960.0,0.50730411]
[1770984789359,0.49836672,1960.9,1960.1,1.27544513]
[1770984789653,0.49836672,1960.9,1960.6,0.001]
[1770984789828,0.50036672,1960.9,1960.6,0.001]
[1770984790854,0.50036672,1960.9,1959.8,0.45628371]
[1770984791153,0.50036672,1960.9,1959.7,1.27670317]
[1770984791354,0.49836672,1960.5,1959.7,1.27670317]
[1770984792159,0.49836672,1960.5,1959.7,0.001]
[1770984793362,1.77359677,1960.5,1959.7,0.45728371]
[1770984793555,1.27523005,1960.5,1959.7,0.45728371]
[1770984793756,1.77359677,1960.5,1959.7,0.45728371]
[1770984795568,1.77359677,1960.5,1959.8,1.27564037]
[1770984799576,1.27516715,1960.6,1959.8,1.73192408]
[1770984799742,1.09405669,1960.5,1959.9,0.50730671]
[1770984800070,1.27516715,1960.6,1959.9,0.50730671]
[1770984800272,1.0942305,1960.5,1959.9,0.50730671]
[1770984800479,0.49836672,1960.4,1959.7,1.73298798]
[1770984801344,1.77365091,1960.4,1959.7,1.73298798]
[1770984802754,1.77365091,1960.4,1959.9,0.001]
[1770984803248,1.09793599,1960.3,1959.9,0.001]
[1770984803452,1.77365091,1960.4,1959.9,0.001]
[1770984803654,1.09793599,1960.3,1959.9,0.001]
[1770984803874,1.77365091,1960.4,1959.9,0.001]
[1770984804045,1.09793598,1960.3,1959.9,0.001]
[1770984804250,1.09950412,1960.2,1959.9,0.001]
[1770984804548,1.77365091,1960.4,1959.9,0.001]
[1770984804767,1.09950405,1960.3,1959.9,0.001]
[1770984804965,1.77365091,1960.4,1959.9,0.001]
[1770984804966,1.09950405,1960.2,1959.9,0.001]
[1770984805274,1.27528419,1960.4,1959.9,0.001]
[1770984805275,1.59796871,1960.1,1959.9,0.001]
[1770984805476,1.77384176,1960.1,1959.9,0.001]
[1770984806189,1.59799903,1960.0,1959.7,0.001]
[1770984806393,0.49836672,1960.0,1959.7,0.001]
[1770984807264,1.27524994,1960.4,1959.7,0.45728371]
[1770984807457,1.27538006,1960.2,1959.7,0.45728371]
[1770984807647,1.09948014,1960.1,1959.7,0.45728371]
[1770984807843,1.09948014,1960.0,1959.7,0.45728371]
[1770984808177,1.27538006,1960.2,1959.7,0.45728371]
[1770984808371,1.09935812,1960.1,1959.7,0.45728371]
[1770984808674,1.27536514,1960.3,1959.7,1.73296849]
[1770984808974,1.09933445,1960.2,1959.8,0.45628371]
[1770984809148,1.27536514,1960.3,1959.7,1.27668478]
[1770984809351,0.49836672,1960.1,1959.7,0.001]
[1770984809550,1.09926717,1960.0,1959.7,0.001]
[1770984811782,1.74840564,1960.2,1959.7,0.001]
[1770984811952,1.0992477,1960.1,1959.7,0.001]
[1770984812152,1.0992477,1960.0,1959.7,0.001]
[1770984812377,1.2754211,1960.2,1959.7,0.001]
[1770984812581,1.09913942,1960.1,1959.7,0.001]
[1770984812779,1.09913942,1960.0,1959.7,0.001]
[1770984812979,1.2754211,1960.2,1959.7,0.001]
[1770984813300,1.09914145,1960.1,1959.7,0.001]
[1770984813481,1.09914145,1960.0,1959.7,0.001]
[1770984813682,1.2754211,1960.2,1959.7,0.001]
[1770984813871,1.09908409,1960.1,1959.7,0.001]
[1770984814181,1.09908409,1960.0,1959.7,0.001]
[1770984814384,1.2754211,1960.2,1959.7,0.001]
[1770984814578,1.09915621,1960.1,1959.7,0.46086987]
[1770984814764,1.275315,1960.3,1959.7,0.46086987]
[1770984814957,1.09911205,1960.2,1959.7,0.46086987]
[1770984815260,1.09911205,1960.1,1959.8,0.001]
[1770984815461,1.275315,1960.3,1959.8,0.001]
[1770984815677,1.09928866,1960.2,1959.8,0.001]
[1770984815875,1.09928866,1960.1,1959.8,0.001]
[1770984816264,1.59300415,1960.1,1959.8,0.001]
[1770984816469,1.09928866,1960.0,1959.8,0.001]
[1770984816667,1.27540634,1960.2,1959.8,0.001]
[1770984816998,1.09985268,1960.1,1959.8,0.001]
[1770984817195,1.09985268,1960.0,1959.8,0.001]
[1770984817490,1.27537095,1960.3,1959.8,0.47123969]
[1770984817685,1.10045171,1960.2,1959.8,0.47123969]
[1770984817889,1.10045171,1960.1,1959.8,0.47123969]
[1770984818054,1.27538774,1960.2,1959.8,0.47123969]
[1770984818254,1.10096889,1960.1,1959.8,0.47123969]
[1770984818485,1.27536099,1960.3,1959.8,0.47123969]
[1770984818683,1.10096892,1960.2,1959.8,0.47123969]
[1770984818981,1.10096892,1960.1,1959.8,0.47123969]
[1770984819175,1.27536099,1960.3,1959.8,0.47123969]
[1770984819387,1.10163843,1960.2,1959.8,1.74687751]
[1770984819686,1.10163843,1960.1,1959.8,1.74687751]
[1770984819857,1.27536099,1960.3,1959.8,1.74687751]
[1770984820058,1.10163842,1960.2,1959.8,1.74687751]
[1770984820259,1.10163842,1960.1,1959.8,0.001]
[1770984820480,1.10163842,1960.0,1959.8,0.001]
[1770984820805,1.10268437,1959.9,1959.8,0.001]
[1770984821088,1.10268437,1959.9,1959.7,0.001]
[1770984821288,1.10268437,1959.8,1959.7,0.001]
[1770984821584,1.10281501,1960.0,1959.7,0.001]
[1770984821786,1.10281501,1959.9,1959.7,0.001]
[1770984821966,1.10281501,1959.8,1959.7,0.001]
[1770984823471,1.27549983,1960.1,1959.7,0.001]
[1770984823667,1.10276257,1960.0,1959.7,0.001]
[1770984823868,1.27564037,1959.8,1959.7,0.001]
[1770984824072,1.27564037,1959.8,1959.2,3.81226172]
[1770984824073,2.37840294,1959.8,1959.2,3.81226172]
[1770984824271,1.10276257,1959.7,1959.2,3.81226172]
[1770984824585,1.27564037,1959.8,1959.2,3.81226172]
[1770984824788,1.10270615,1959.7,1959.2,3.81226172]
[1770984824991,1.27564037,1959.8,1959.2,3.81226172]
[1770984825182,1.1026095,1959.7,1959.2,3.81226172]
[1770984825383,1.27564037,1959.8,1959.2,3.81226172]
[1770984825565,1.10261674,1959.7,1959.2,3.81226172]
[1770984825889,1.27564037,1959.8,1959.2,3.81226172]
[1770984826090,1.10261666,1959.7,1959.2,3.81226172]
[1770984826292,1.27564037,1959.8,1959.2,3.81226172]
[1770984826589,7.2554821,1959.5,1959.0,0.92153886]
[1770984826789,1.10251082,1959.4,1959.0,0.92153886]
[1770984826965,1.10251082,1959.3,1959.0,0.92153886]
[1770984827164,0.49371549,1959.6,1959.0,0.92153886]
[1770984827389,1.10187885,1959.5,1959.3,0.001]
[1770984827584,1.10187885,1959.4,1959.3,0.001]
[1770984827985,2.37776862,1959.5,1959.3,0.001]
[1770984828186,1.10187885,1959.4,1959.3,0.001]
[1770984829362,1.10187885,1959.4,1959.0,0.92153886]
[1770984830192,1.2759659,1959.3,1959.0,0.92153886]
[1770984832398,1.27590078,1959.4,1959.0,0.92153886]
[1770984832568,5.59669168,1959.7,1959.0,2.66792155]
[1770984832774,1.09930707,1959.6,1959.0,1.39177855]
[1770984833079,1.09930707,1959.5,1959.0,1.39177855]
[1770984833397,1.09930707,1959.4,1959.0,1.39177855]
[1770984833596,0.49371549,1959.6,1959.0,1.39177855]
[1770984833796,1.09909254,1959.5,1959.0,1.39177855]
[1770984833994,1.09909254,1959.4,1959.0,1.39177855]
[1770984834178,0.49371549,1959.6,1959.0,1.39177855]
[1770984834379,1.09888991,1959.5,1959.0,1.39177855]
[1770984834581,1.09888991,1959.4,1959.0,1.39177855]
[1770984834783,1.27570546,1959.7,1959.1,0.47023969]
[1770984835087,1.592674,1959.6,1959.0,0.92153886]
[1770984835288,1.09895851,1959.5,1959.0,0.92153886]
[1770984835482,1.27570546,1959.7,1959.0,2.19769874]
[1770984835690,1.09875625,1959.6,1959.1,0.47023969]
[1770984835900,1.27570546,1959.7,1959.1,0.47023969]
[1770984835901,1.09875625,1959.5,1959.1,0.47023969]
[1770984836097,1.27570546,1959.7,1959.1,0.47023969]
[1770984836301,1.09859899,1959.6,1959.1,0.47023969]
[1770984836509,1.09859899,1959.5,1959.1,0.47023969]
[1770984836808,1.27582805,1959.6,1959.1,0.47023969]
[1770984837100,1.09851356,1959.5,1959.1,0.47023969]
[1770984837308,1.27582805,1959.6,1959.1,0.47023969]
[1770984837610,1.27576244,1959.7,1959.1,1.74633121]
[1770984837778,1.09839665,1959.6,1959.1,1.74633121]
[1770984838106,1.27576244,1959.7,1959.1,1.74633121]
[1770984838314,1.09822917,1959.6,1959.1,1.74633121]
[1770984838506,7.75566193,1959.8,1959.2,0.47023969]
[1770984838674,1.09823522,1959.7,1959.2,1.74625319]
[1770984838869,1.09823522,1959.6,1959.2,1.74625319]
[1770984839208,7.75566193,1959.8,1959.3,0.47023969]
[1770984839510,1.09843064,1959.7,1959.3,0.47023969]
[1770984839712,7.75566193,1959.8,1959.3,0.47023969]
[1770984839886,1.09843117,1959.7,1959.3,0.47023969]
[1770984840204,7.75566193,1959.8,1959.3,0.47023969]
[1770984840411,1.09863767,1959.7,1959.3,0.47023969]
[1770984840591,7.75566193,1959.8,1959.3,0.47023969]
[1770984840906,1.628,1959.9,1959.4,0.49114297]
[1770984841209,1.09873444,1959.8,1959.4,0.49114297]
[1770984841409,1.27751801,1960.0,1959.4,0.49114297]
[1770984841584,1.09881857,1959.9,1959.4,0.49114297]
[1770984841905,1.09881857,1959.8,1959.4,0.49114297]
[1770984842109,0.002,1959.5,1959.4,0.49114297]
[1770984842683,1.27751801,1960.0,1959.4,0.49114297]
[1770984842885,1.09900705,1959.9,1959.4,1.2758453]
[1770984843106,1.09900705,1959.8,1959.5,0.49114297]
[1770984843317,1.27751801,1960.0,1959.5,0.49114297]
[1770984843507,1.09908115,1959.9,1959.5,0.49114297]
[1770984843701,1.09908115,1959.8,1959.5,0.49114297]
[1770984843904,0.002,1960.0,1959.5,0.49114297]
[1770984844105,1.09907212,1959.9,1959.5,0.49114297]
[1770984844393,0.002,1960.0,1959.5,0.49114297]
[1770984844602,1.09908873,1959.9,1959.5,0.49114297]
[1770984844805,0.002,1960.0,1959.5,0.49114297]
[1770984845011,1.09908866,1959.9,1959.5,1.76692226]
[1770984845209,0.002,1960.0,1959.5,1.76692226]
[1770984845416,0.002,1960.0,1959.6,0.49114297]
[1770984847019,0.002,1960.0,1959.7,0.49114297]
[1770984847521,0.002,1960.0,1959.5,3.82895567]
[1770984847888,0.49092548,1960.0,1959.3,0.49114297]
[1770984848089,1.0991733,1959.9,1959.3,0.49114297]
[1770984848316,0.49092548,1960.0,1959.3,0.49114297]
[1770984848620,1.58835663,1959.9,1959.2,2.063]
[1770984848824,1.09943115,1959.8,1959.2,2.063]
[1770984849220,1.27570546,1959.7,1959.1,1.76820725]
[1770984849522,1.27570546,1959.7,1959.1,2.55414297]
[1770984849697,1.76463094,1959.7,1959.1,0.001]
[1770984849894,1.27570546,1959.7,1959.1,1.76822841]
[1770984850105,1.27568185,1959.8,1959.1,1.76822841]
[1770984850308,1.09995037,1959.7,1959.1,1.76822841]
[1770984850597,1.27568185,1959.8,1959.1,1.76822841]
[1770984850801,1.10005141,1959.7,1959.1,1.76822841]
[1770984851121,1.27568185,1959.8,1959.1,1.76822841]
[1770984851321,2.37587504,1959.7,1959.1,1.76822841]
[1770984851505,1.27571751,1959.7,1959.1,1.76822841]
[1770984851820,1.27571751,1959.7,1959.1,1.76823612]
[1770984853032,1.76455161,1959.9,1959.2,0.49114297]
[1770984853231,1.10047117,1959.8,1959.2,0.49114297]
[1770984853395,1.10047117,1959.7,1959.2,1.76714206]
[1770984854025,2.37618326,1959.7,1959.2,1.76816963]
[1770984854227,1.27571209,1959.7,1959.2,1.76816963]
[1770984855394,5.10268169,1959.8,1959.2,1.76816963]
[1770984855692,1.10074297,1959.7,1959.2,1.76816963]
[1770984855892,5.59160717,1959.8,1959.2,1.76816963]
[1770984856092,1.100743,1959.7,1959.2,1.76816963]
[1770984856326,5.59160717,1959.8,1959.2,1.76816963]
[1770984856528,1.10083091,1959.7,1959.2,1.76816963]
[1770984856695,5.59160717,1959.8,1959.2,1.76816963]
[1770984856889,1.10083097,1959.7,1959.2,1.76816963]
[1770984857117,5.59160717,1959.8,1959.2,1.76816963]
[1770984857318,1.10082394,1959.7,1959.2,1.76816963]
[1770984857524,1.10082394,1959.6,1959.2,1.76816963]
[1770984857725,1.27564037,1959.8,1959.2,1.76816963]
[1770984857924,1.10088385,1959.7,1959.2,1.76816963]
[1770984858127,1.27564037,1959.8,1959.2,1.76816963]
[1770984858128,1.10088385,1959.6,1959.2,1.76816963]
[1770984858430,1.27564037,1959.8,1959.2,1.76816963]
[1770984858628,1.10094406,1959.7,1959.2,1.76816963]
[1770984858846,0.48892548,1959.5,1959.2,0.001]
[1770984859354,1.10107443,1959.4,1959.2,0.001]
[1770984859635,1.10107443,1959.4,1959.0,0.00253886]
[1770984859636,2.86596581,1959.3,1959.0,0.00253886]
[1770984859836,1.10107443,1959.2,1959.0,0.00253886]
[1770984862514,1.27609616,1959.1,1959.0,0.00253886]
[1770984863122,2.37680782,1959.1,1959.0,0.00253886]
[1770984863328,1.27609616,1959.1,1959.0,0.00253886]
[1770984864838,2.37651929,1959.1,1959.0,0.00253886]